[Event "POL-chT 2nd League Juniors 2020"]
[Site "Sypniewo"]
[Date "2020.10.27"]
[Round "6.10"]
[White "Kaczmarek, Jan"]
[Black "Rumniak, Aleksy"]
[Result "0-1"]
[ECO "E85"]
[WhiteElo "1229"]
[BlackElo "1117"]
[Annotator "NA RC"]
[PlyCount "103"]
[EventDate "2020.10.23"]
[EventType "team-tourn"]
[EventCountry "POL"]
[SourceTitle "playchess.com"]
[Source "ChessBase"]
[SourceQuality "1"]
[TimeControl "5400+30"]

1. d4 {[%emt 0:00:00]} Nf6 {[%emt 0:00:00]} 2. c4 {[%emt 0:00:00]} g6 {[%emt 0:00:00]} 3. Nc3 {[%emt 0:00:00]} Bg7 {[%emt 0:00:00]} 4. e4 {[%emt 0:00:24]} d6 {[%emt 0:00:06]} 5. f3 {[%emt 0:00:15]} O-O {[%emt 0:02:36]} 6. Be3 {[%emt 0:00:06]} e5 {[%emt 0:04:36]} 7. Nge2 {[%emt 0:00:10]} Nc6 {[%emt 0:00:20]} 8. d5 {[%emt 0:00:32]} Ne7 {[%emt 0:00:12]} 9. Nc1 {[%emt 0:03:00]} Ne8 {[%emt 0:07:29]} 10. b4 {[%emt 0:05:01]} f5 {[%emt 0:02:03]} 11. Nd3 {[%emt 0:03:15]} f4 {[%emt 0:10:59]} 12. Bf2 {[%emt 0:00:52]} g5 13. c5 h5 {[%emt 0:05:35]} 14. a4 {[%emt 0:15:28]} Rf7 {[%emt 0:14:30]} 15. Nb5 {[%emt 0:09:44]} a6 {[%emt 0:09:02]} 16. Na3 {[%emt 0:04:56]} g4 {[%emt 0:10:48]} 17. Rb1 {[%emt 0:12:26]} Ng6 {[%emt 0:07:23]} 18. a5 {[%emt 0:05:37]} Bf6 {[%emt 0:11:16]} 19. Kd2 {[%emt 0:10:17]} Bh4 {[%emt 0:01:42]} 20. Be2 {[%emt 0:05:39]} Bxf2 {[%emt 0:00:28]} 21. Nxf2 {[%emt 0:00:02]} g3 {[%emt 0:00:25]} 22. hxg3 {[%emt 0:01:06]} fxg3 {[%emt 0:00:09]} 23. Nd3 {[%emt 0:03:14]} Qg5+ {[%emt 0:01:25]} 24. Kc2 {[%emt 0:01:44]} h4 {[%emt 0:03:36]} 25. Qd2 {[%emt 0:01:52]} Qf6 {[%emt 0:02:49]} 26. Nc4 {[%emt 0:03:19]} Bd7 {[%emt 0:02:07]} 27. cxd6 {[%emt 0:02:25]} Nxd6 {[%emt 0:00:06]} 28. Nxd6 {[%emt 0:02:29]} cxd6 {[%emt 0:00:11]} 29. Kb3 {[%emt 0:00:33]} Rc8 {[%emt 0:01:13]} 30. Rbc1 {[%emt 0:00:39]} Rff8 {[%emt 0:00:27]} 31. Rxc8 {[%emt 0:03:24]} Rxc8 {[%emt 0:00:06]} 32. Rf1 {[%emt 0:02:07]} Nf4 {[%emt 0:01:29]} 33. Nxf4 {[%emt 0:00:10]} exf4 {[%emt 0:01:36]} 34. Qb2 {[%emt 0:00:49]} Ba4+ {[%emt 0:00:55]} 35. Ka3 {[%emt 0:00:49]} Qxb2+ {[%emt 0:01:06]} 36. Kxb2 {[%emt 0:00:02]} Rc2+ {[%emt 0:00:14]} 37. Ka3 {[%emt 0:00:44]} Rxe2 {[%emt 0:00:07]} 38. Kxa4 {[%emt 0:00:46]} Rxg2 {[%emt 0:00:06]} 39. Rh1 {[%emt 0:00:30]} Rh2 {[%emt 0:00:17]} 40. Rg1 {[%emt 0:00:51]} h3 {[%emt 0:00:47]} 41. e5 {[%emt 0:00:29]} Kf7 {[%emt 0:00:31]} 42. Re1 {[%emt 0:00:57]} Rd2 {[%emt 0:00:45]} 43. e6+ {[%emt 0:00:43]} Ke7 {[%emt 0:00:09]} 44. b5 {[%emt 0:00:26]} Ra2+ {[%emt 0:01:02]} 45. Kb3 {[%emt 0:00:55]} Rxa5 {[%emt 0:00:13]} 46. bxa6 {[%emt 0:00:30]} bxa6 {[%emt 0:00:11]} 47. Re4 {[%emt 0:01:01]} Rxd5 {[%emt 0:00:37]} 48. Ka2 {[%emt 0:00:20]} h2 {[%emt 0:00:31]} 49. Re2 {[%emt 0:00:24]} h1=Q {[%emt 0:00:23]} 50. Rb2 {[%emt 0:00:14]} Ra5+ {[%emt 0:00:26]} 51. Kb3 {[%emt 0:00:08]} Rb5+ {[%emt 0:00:06]} 52. Ka2 0-1

[Event "POL-chT 2nd League Juniors 2020"]
[Site "Sypniewo"]
[Date "2020.10.27"]
[Round "6.11"]
[White "Matyjasek, Michalina"]
[Black "Niemier, Martyna"]
[Result "1-0"]
[ECO "D37"]
[WhiteElo "1477"]
[BlackElo "1235"]
[Annotator "NA RC"]
[PlyCount "95"]
[EventDate "2020.10.23"]
[EventType "team-tourn"]
[EventCountry "POL"]
[SourceTitle "playchess.com"]
[Source "ChessBase"]
[SourceQuality "1"]
[TimeControl "5400+30"]

1. d4 {[%emt 0:00:00]} d5 {[%emt 0:00:00]} 2. c4 {[%emt 0:00:00]} e6 {[%emt 0:00:00]} 3. Nc3 {[%emt 0:00:00]} Nf6 {[%emt 0:00:02]} 4. Nf3 {[%emt 0:00:00]} Be7 {[%emt 0:00:14]} 5. e3 {[%emt 0:00:00]} O-O {[%emt 0:00:08]} 6. b3 {[%emt 0:00:01]} c5 {[%emt 0:00:32]} 7. Bd3 {[%emt 0:00:53]} cxd4 {[%emt 0:00:48]} 8. exd4 {[%emt 0:01:43]} Nc6 {[%emt 0:02:14]} 9. O-O {[%emt 0:01:51]} a6 {[%emt 0:08:56]} 10. h3 {[%emt 0:10:29]} b6 {[%emt 0:04:52]} 11. Be3 {[%emt 0:04:43]} Bb7 {[%emt 0:01:03]} 12. Qe2 {[%emt 0:02:49]} Rc8 {[%emt 0:01:09]} 13. Rfd1 h6 14. Na4 {[%emt 0:13:09]} Nb4 {[%emt 0:09:07]} 15. c5 {[%emt 0:07:39]} Nxd3 {[%emt 0:02:37]} 16. Qxd3 {[%emt 0:00:57]} bxc5 {[%emt 0:00:21]} 17. dxc5 {[%emt 0:01:53]} Qa5 {[%emt 0:12:12]} 18. Bd2 {[%emt 0:04:45]} Qb5 {[%emt 0:06:15]} 19. Be3 {[%emt 0:03:20]} Ne4 {[%emt 0:04:43]} 20. Rac1 {[%emt 0:09:53]} Rc7 {[%emt 0:09:05]} 21. Bf4 {[%emt 0:06:54]} Rcc8 {[%emt 0:01:52]} 22. Be3 {[%emt 0:06:44]} Rc7 {[%emt 0:05:52]} 23. Qb1 {[%emt 0:02:34]} Nxc5 {[%emt 0:06:26]} 24. Nxc5 {[%emt 0:02:15]} Bxc5 {[%emt 0:00:35]} 25. a4 {[%emt 0:04:31]} Qb6 {[%emt 0:02:22]} 26. Rxc5 {[%emt 0:03:22]} Rxc5 {[%emt 0:00:49]} 27. b4 {[%emt 0:00:22]} f6 {[%emt 0:06:04]} 28. Bxc5 {[%emt 0:00:11]} Qc6 {[%emt 0:01:09]} 29. Bxf8 {[%emt 0:00:23]} Kxf8 {[%emt 0:00:07]} 30. Nd4 {[%emt 0:01:10]} Qb6 {[%emt 0:01:17]} 31. a5 {[%emt 0:02:14]} Qd6 {[%emt 0:00:56]} 32. b5 {[%emt 0:00:40]} e5 {[%emt 0:00:48]} 33. Nf5 {[%emt 0:00:40]} Qe6 {[%emt 0:01:15]} 34. Qb4+ {[%emt 0:00:31]} Kf7 {[%emt 0:00:31]} 35. Nd6+ {[%emt 0:00:06]} Kg8 {[%emt 0:00:30]} 36. Nxb7 {[%emt 0:00:07]} axb5 {[%emt 0:00:15]} 37. Qxb5 {[%emt 0:00:12]} d4 {[%emt 0:00:06]} 38. a6 {[%emt 0:00:36]} e4 {[%emt 0:00:26]} 39. Rxd4 {[%emt 0:02:33]} e3 {[%emt 0:00:05]} 40. Qc4 {[%emt 0:00:37]} Qxc4 {[%emt 0:00:43]} 41. Rxc4 {[%emt 0:00:04]} e2 {[%emt 0:00:10]} 42. Rc1 {[%emt 0:00:04]} f5 {[%emt 0:00:10]} 43. f3 {[%emt 0:00:07]} g5 {[%emt 0:00:08]} 44. Kf2 {[%emt 0:00:22]} h5 {[%emt 0:00:20]} 45. Rc7 {[%emt 0:00:08]} g4 {[%emt 0:00:09]} 46. a7 {[%emt 0:00:13]} g3+ {[%emt 0:00:22]} 47. Kxe2 {[%emt 0:00:06]} f4 {[%emt 0:00:12]} 48. a8=R# {[%emt 0:00:06]} 1-0

[Event "POL-chT 2nd League Juniors 2020"]
[Site "Sypniewo"]
[Date "2020.10.27"]
[Round "6.12"]
[White "Konkol, Sandra"]
[Black "Slusarczyk, Anna"]
[Result "0-1"]
[ECO "B23"]
[WhiteElo "1235"]
[BlackElo "1330"]
[Annotator "NA RC"]
[PlyCount "54"]
[EventDate "2020.10.23"]
[EventType "team-tourn"]
[EventCountry "POL"]
[SourceTitle "playchess.com"]
[Source "ChessBase"]
[SourceQuality "1"]
[TimeControl "5400+30"]

1. e4 {[%emt 0:00:00]} c5 {[%emt 0:00:00]} 2. Nc3 {[%emt 0:00:00]} e6 3. g3 {[%emt 0:00:40]} Nc6 {[%emt 0:01:04]} 4. Bg2 {[%emt 0:00:19]} Nf6 {[%emt 0:00:37]} 5. d3 {[%emt 0:00:32]} d6 {[%emt 0:01:19]} 6. Nge2 {[%emt 0:00:20]} Be7 {[%emt 0:07:21]} 7. O-O {[%emt 0:02:41]} O-O {[%emt 0:02:09]} 8. f4 {[%emt 0:02:39]} a6 {[%emt 0:04:15]} 9. h3 {[%emt 0:02:41]} Qc7 {[%emt 0:03:00]} 10. g4 {[%emt 0:05:33]} b5 {[%emt 0:05:23]} 11. g5 {[%emt 0:02:35]} Nd7 {[%emt 0:01:29]} 12. h4 {[%emt 0:01:49]} Nb6 {[%emt 0:01:58]} 13. Be3 {[%emt 0:02:39]} b4 {[%emt 0:00:43]} 14. Nb1 {[%emt 0:00:20]} d5 {[%emt 0:01:14]} 15. exd5 {[%emt 0:02:48]} Nxd5 {[%emt 0:07:06]} 16. Bxd5 {[%emt 0:02:25]} exd5 {[%emt 0:00:10]} 17. Ng3 {[%emt 0:02:01]} Bh3 {[%emt 0:07:26]} 18. Rf2 {[%emt 0:00:45]} Rfe8 {[%emt 0:00:22]} 19. Qf3 {[%emt 0:01:06]} d4 {[%emt 0:03:33]} 20. Bd2 {[%emt 0:01:42]} Bc8 {[%emt 0:02:13]} 21. f5 {[%emt 0:03:10]} Bb7 {[%emt 0:00:34]} 22. f6 {[%emt 0:01:09]} Ne5 {[%emt 0:02:35]} 23. Qh5 {[%emt 0:02:42]} Nxd3 {[%emt 0:01:21]} 24. Nf5 {[%emt 0:02:51]} Nxf2 {[%emt 0:01:29]} 25. Nxe7+ {[%emt 0:00:15]} Rxe7 {[%emt 0:00:12]} 26. fxe7 {[%emt 0:00:57]} Qg3+ {[%emt 0:00:31]} 27. Kf1 {[%emt 0:00:11]} Bf3 {[%emt 0:00:10]} 0-1

[Event "POL-chT 2nd League Juniors 2020"]
[Site "Sypniewo"]
[Date "2020.10.27"]
[Round "6.14"]
[White "Topola, Rafal"]
[Black "Bialik, Nikodem"]
[Result "1/2-1/2"]
[ECO "D35"]
[WhiteElo "1827"]
[BlackElo "1547"]
[Annotator "NA RC"]
[PlyCount "88"]
[EventDate "2020.10.23"]
[EventType "team-tourn"]
[EventCountry "POL"]
[SourceTitle "playchess.com"]
[Source "ChessBase"]
[SourceQuality "1"]
[TimeControl "5400+30"]

1. d4 {[%emt 0:00:00]} d5 {[%emt 0:00:00]} 2. c4 {[%emt 0:00:00]} e6 {[%emt 0:00:28]} 3. Nc3 {[%emt 0:00:01]} Nf6 {[%emt 0:00:20]} 4. cxd5 {[%emt 0:00:10]} exd5 {[%emt 0:00:18]} 5. Bg5 {[%emt 0:00:29]} Nbd7 {[%emt 0:00:18]} 6. e3 {[%emt 0:01:11]} Be7 {[%emt 0:00:25]} 7. Nf3 {[%emt 0:00:31]} c6 {[%emt 0:01:10]} 8. Bd3 {[%emt 0:00:40]} O-O {[%emt 0:00:20]} 9. O-O {[%emt 0:00:28]} Re8 {[%emt 0:00:31]} 10. Qc2 {[%emt 0:01:20]} Nf8 {[%emt 0:00:22]} 11. Rab1 {[%emt 0:00:51]} Bg4 {[%emt 0:00:40]} 12. b4 {[%emt 0:06:48] D36: Queen's Gambit Declined: Exchange Variation: Main line (5 Bg5 c6 6 Qc2).} a6 {[%emt 0:00:43]} 13. Na4 {[%emt 0:04:23]} Ne4 {[%emt 0:05:35]} 14. Bxe7 {[%emt 0:01:53]} Qxe7 {[%emt 0:00:51]} 15. Ne5 {[%emt 0:00:46]} Bh5 {[%emt 0:02:43]} 16. Bxe4 {[%emt 0:15:50]} dxe4 {[%emt 0:00:32]} 17. Nc5 {[%emt 0:01:28]} f6 {[%emt 0:01:26]} 18. Nc4 {[%emt 0:00:23]} Bf7 {[%emt 0:03:34] [#]} 19. Rfc1 $146 {[%emt 0:03:34]} ({Predecessor:} 19. a4 Rab8 20. Rfc1 Ng6 21. b5 axb5 22. axb5 Bd5 23. Nb6 Qf7 24. bxc6 bxc6 25. Na6 {½-½ (49) Kottnauer,C-Szapiel,H Szczawno Zdroj 1950}) 19... Ng6 {[%emt 0:05:05]} 20. a4 {[%emt 0:01:02]} f5 {[%emt 0:06:47]} 21. Nb6 {[%emt 0:03:37]} Ra7 {[%emt 0:06:21]} 22. Nb3 {[%emt 0:11:54]} Qg5 {[%emt 0:01:21]} 23. Kh1 {[%emt 0:01:26]} ({Reject} 23. g3 f4 $11) 23... f4 {[%emt 0:04:07]} 24. Qc5 {[%emt 0:00:58]} Qg4 $16 {[%emt 0:03:23]} (24... Qh4 $1 $14) 25. h3 {[%emt 0:22:14]} Qh4 {[%emt 0:00:52]} 26. Kg1 {[%emt 0:03:19]} fxe3 {[%emt 0:07:39]} 27. fxe3 {[%emt 0:01:29]} Qg3 {[%emt 0:00:19]} 28. Qc2 {[%emt 0:05:18]} Qxe3+ {[%emt 0:01:32]} 29. Qf2 {[%emt 0:00:00]} Qxf2+ {[%emt 0:01:10]} 30. Kxf2 {[%emt 0:00:02]} Nf4 {[%emt 0:00:34]} 31. Nc5 {[%emt 0:00:45]} Nd3+ {[%emt 0:06:54]} 32. Nxd3 {[%emt 0:00:20]} exd3 {[%emt 0:00:04]} 33. a5 {[%emt 0:05:05]} Re2+ {[%emt 0:01:20]} 34. Kf3 {[%emt 0:00:03]} Bg6 {[%emt 0:04:20]} 35. Re1 {[%emt 0:04:12]} Ra2 {[%emt 0:01:29]} 36. Ra1 {[%emt 0:03:47]} Rb2 {[%emt 0:03:18]} 37. Reb1 {[%emt 0:00:31]} Re2 {[%emt 0:01:14]} 38. Re1 {[%emt 0:00:08]} Rb2 {[%emt 0:02:04]} 39. Reb1 {[%emt 0:00:04]} Rc2 {[%emt 0:00:12]} 40. Rc1 {[%emt 0:00:24]} Rb2 {[%emt 0:00:52]} 41. Rcb1 {[%emt 0:00:08]} Rc2 {[%emt 0:00:40]} 42. Rc1 {[%emt 0:00:01]} Rb2 43. Re1 d2 44. Red1 Ra2 1/2-1/2

[Event "POL-chT 2nd League Juniors 2020"]
[Site "Sypniewo"]
[Date "2020.10.27"]
[Round "6.15"]
[White "Cieply, Krzysztof"]
[Black "Nowak, Filip"]
[Result "1-0"]
[ECO "B40"]
[WhiteElo "1573"]
[BlackElo "1871"]
[Annotator "NA RC"]
[PlyCount "101"]
[EventDate "2020.10.23"]
[EventType "team-tourn"]
[EventCountry "POL"]
[SourceTitle "playchess.com"]
[Source "ChessBase"]
[SourceQuality "1"]
[TimeControl "5400+30"]

1. e4 {[%emt 0:00:00]} c5 {[%emt 0:00:00]} 2. Nf3 {[%emt 0:00:00]} e6 {[%emt 0:00:00]} 3. d4 {[%emt 0:00:00]} cxd4 {[%emt 0:00:00]} 4. Nxd4 {[%emt 0:00:01]} Nf6 {[%emt 0:00:01]} 5. Bd3 {[%emt 0:01:13]} Nc6 {[%emt 0:00:09]} 6. Nxc6 {[%emt 0:00:06]} dxc6 {[%emt 0:00:07]} 7. Bf4 {[%emt 0:01:02] B40: Sicilian: 2...e6, Unusual lines.} Qa5+ {[%emt 0:04:45]} 8. Qd2 {[%emt 0:01:22]} Bb4 {[%emt 0:00:47]} 9. c3 {[%emt 0:00:13]} Be7 {[%emt 0:00:10] [#]} 10. O-O $146 {[%emt 0:00:31]} ({Predecessor:} 10. b4 Qh5 11. O-O e5 12. Bg3 O-O 13. Qe3 a5 14. b5 cxb5 15. Bxb5 Be6 16. Be2 {0-1 (45) Bystricky,K (1807)-Oleynik,V (2314) ICCF email 2011}) 10... e5 {[%emt 0:00:38]} 11. Bg3 {[%emt 0:00:51]} O-O {[%emt 0:01:17]} 12. Qc2 {[%emt 0:01:41]} Nh5 {[%emt 0:05:12]} 13. Nd2 {[%emt 0:00:32]} Nxg3 {[%emt 0:00:23]} 14. hxg3 {[%emt 0:00:09]} Be6 {[%emt 0:07:57]} 15. Nc4 {[%emt 0:01:14]} Qc7 {[%emt 0:00:46]} 16. Ne3 {[%emt 0:00:27]} Bc5 {[%emt 0:04:06]} 17. Qe2 {[%emt 0:02:02]} b5 {[%emt 0:08:11]} 18. b3 {[%emt 0:02:45]} Rae8 {[%emt 0:08:11]} (18... a5 $17) 19. Rad1 {[%emt 0:01:39]} (19. b4 $15 Bxe3 20. Qxe3) 19... Kh8 {[%emt 0:03:32]} 20. Rd2 {[%emt 0:03:22]} g6 {[%emt 0:00:56]} 21. c4 {[%emt 0:02:56]} ({White should try} 21. b4 $15 Be7 22. c4) 21... b4 {[%emt 0:00:58]} 22. Rfd1 {[%emt 0:02:09]} f5 {[%emt 0:09:38]} (22... Qe7 $17 23. Qe1 Bd4) 23. exf5 {[%emt 0:06:19]} gxf5 {[%emt 0:00:16]} 24. Nf1 {[%emt 0:02:41]} (24. Qh5 $142 e4 25. Bc2) 24... Bc8 {[%emt 0:04:47]} 25. Bc2 {[%emt 0:00:39]} e4 {[%emt 0:05:06]} 26. Qh5 {[%emt 0:02:11]} Qe7 {[%emt 0:06:29]} 27. Ne3 {[%emt 0:01:50]} a5 {[%emt 0:05:36]} 28. Qh6 $15 {[%emt 0:02:24]} f4 {[%emt 0:13:01]} 29. gxf4 {[%emt 0:01:36]} Rg8 {[%emt 0:02:33]} 30. Qh2 {[%emt 0:10:00]} Rg7 {[%emt 0:01:35]} 31. Re1 {[%emt 0:00:40]} Reg8 {[%emt 0:00:29]} 32. g3 {[%emt 0:02:01]} Rf8 {[%emt 0:05:07]} 33. Ng2 {[%emt 0:01:05]} Bf5 {[%emt 0:01:43]} 34. Rde2 {[%emt 0:00:24]} e3 {[%emt 0:01:13]} 35. Nxe3 {[%emt 0:00:32]} Bxe3 {[%emt 0:01:09]} 36. Rxe3 {[%emt 0:03:23]} Qf6 {[%emt 0:00:20]} 37. Bxf5 {[%emt 0:00:34]} Qxf5 {[%emt 0:00:01]} 38. Qh4 {[%emt 0:01:40]} Qg6 {[%emt 0:01:03]} 39. Re6 {[%emt 0:00:39]} Qc2 {[%emt 0:00:36]} 40. Re8 {[%emt 0:01:03]} Qf5 {[%emt 0:00:02]} 41. Qd8 {[%emt 0:00:42]} Rgf7 {[%emt 0:00:46]} 42. Rxf8+ {[%emt 0:00:56]} Rxf8 {[%emt 0:00:01]} 43. Qd4+ {[%emt 0:00:19]} Kg8 {[%emt 0:00:12]} 44. Qe5 {[%emt 0:00:24]} Qc2 {[%emt 0:00:23]} 45. Qxa5 {[%emt 0:00:33]} Qd2 {[%emt 0:00:13]} 46. Qg5+ {[%emt 0:00:13]} Kh8 {[%emt 0:00:07]} 47. Qe5+ {[%emt 0:00:11]} Kg8 {[%emt 0:00:05]} 48. Qe2 {[%emt 0:00:20]} Qc3 {[%emt 0:00:14]} 49. Qe6+ {[%emt 0:00:08]} Kh8 {[%emt 0:00:04]} 50. Qe5+ {[%emt 0:00:05]} Qxe5 {[%emt 0:00:09]} 51. fxe5 {[%emt 0:00:31]} 1-0

[Event "POL-chT 2nd League Juniors 2020"]
[Site "Sypniewo"]
[Date "2020.10.27"]
[Round "6.16"]
[White "Zimny, Jakub"]
[Black "Wojs, Alicja"]
[Result "1/2-1/2"]
[ECO "C03"]
[WhiteElo "1569"]
[BlackElo "1392"]
[Annotator "NA RC"]
[PlyCount "117"]
[EventDate "2020.10.23"]
[EventType "team-tourn"]
[EventCountry "POL"]
[SourceTitle "playchess.com"]
[Source "ChessBase"]
[SourceQuality "1"]
[TimeControl "5400+30"]

1. e4 {[%emt 0:00:00]} e6 {[%emt 0:00:00]} 2. d4 {[%emt 0:00:00]} d5 {[%emt 0:00:20]} 3. Nd2 {[%emt 0:00:42]} a6 {[%emt 0:01:22]} 4. Ngf3 {[%emt 0:00:27]} c5 {[%emt 0:02:20]} 5. dxc5 {[%emt 0:01:03]} Bxc5 {[%emt 0:01:23]} 6. Bd3 {[%emt 0:00:32]} Nc6 {[%emt 0:02:53]} 7. O-O {[%emt 0:01:15]} Nf6 {[%emt 0:02:41]} 8. exd5 {[%emt 0:00:44]} exd5 {[%emt 0:00:42]} 9. Nb3 {[%emt 0:03:34]} Be7 {[%emt 0:03:18]} 10. h3 {[%emt 0:01:09]} h6 {[%emt 0:03:05]} 11. c3 {[%emt 0:01:26]} O-O {[%emt 0:00:29]} 12. Bf4 {[%emt 0:04:28]} Re8 {[%emt 0:04:50]} 13. Qc2 {[%emt 0:12:04]} Bd7 {[%emt 0:05:23]} 14. Nfd4 {[%emt 0:09:01]} Qb6 {[%emt 0:07:04]} 15. Bf5 {[%emt 0:04:24]} Bxf5 {[%emt 0:01:41]} 16. Nxf5 {[%emt 0:00:26]} Bc5 {[%emt 0:02:23]} 17. Nxc5 {[%emt 0:07:53]} Qxc5 {[%emt 0:00:12]} 18. Be3 {[%emt 0:05:48]} Qa5 {[%emt 0:02:20]} 19. Rfd1 {[%emt 0:02:58]} Rad8 {[%emt 0:01:58]} 20. Bd4 {[%emt 0:00:55]} Nxd4 {[%emt 0:03:06]} 21. Rxd4 {[%emt 0:05:49]} Qc7 {[%emt 0:01:46]} 22. Rad1 {[%emt 0:04:30]} Re4 {[%emt 0:01:17]} 23. R4d3 {[%emt 0:08:22]} Rde8 {[%emt 0:02:05]} 24. Ne3 {[%emt 0:00:41]} R4e5 {[%emt 0:02:14]} 25. g3 {[%emt 0:01:25]} Rd8 {[%emt 0:01:54]} 26. Qa4 {[%emt 0:06:01]} Qc8 {[%emt 0:10:10]} 27. Kh2 {[%emt 0:05:52]} h5 {[%emt 0:02:12]} 28. Qf4 {[%emt 0:03:04]} Qe6 {[%emt 0:04:48]} 29. Qf3 {[%emt 0:01:33]} Qc6 {[%emt 0:04:39]} 30. c4 {[%emt 0:01:30]} h4 {[%emt 0:04:48]} 31. cxd5 {[%emt 0:01:38]} hxg3+ {[%emt 0:00:25]} 32. Qxg3 {[%emt 0:01:47]} Qe8 {[%emt 0:01:55]} 33. Ng4 {[%emt 0:00:47]} Nxg4+ {[%emt 0:01:07]} 34. hxg4 {[%emt 0:00:25]} Re2 {[%emt 0:00:55]} 35. Re3 {[%emt 0:00:21]} Rxe3 {[%emt 0:00:35]} 36. Qxe3 {[%emt 0:00:11]} Qb5 {[%emt 0:00:52]} 37. Qd4 {[%emt 0:02:33]} Qa5 {[%emt 0:01:28]} 38. a3 {[%emt 0:00:17]} Qc7+ {[%emt 0:00:14]} 39. d6 {[%emt 0:00:24]} Qc2 {[%emt 0:00:25]} 40. d7 {[%emt 0:00:31]} Qh7+ {[%emt 0:00:25]} 41. Kg1 {[%emt 0:00:15]} Qg6 {[%emt 0:00:22]} 42. f3 {[%emt 0:03:33]} Qc6 {[%emt 0:00:25]} 43. Kg2 {[%emt 0:00:30]} Qc2+ {[%emt 0:00:15]} 44. Kg3 {[%emt 0:00:14]} Qc7+ {[%emt 0:00:14]} 45. Qd6 {[%emt 0:00:48]} Qxd6+ {[%emt 0:00:45]} 46. Rxd6 {[%emt 0:00:06]} Kf8 {[%emt 0:00:05]} 47. Kf4 {[%emt 0:00:25]} Ke7 {[%emt 0:00:12]} 48. Rd4 {[%emt 0:01:05]} Rxd7 {[%emt 0:00:10]} 49. Rxd7+ {[%emt 0:00:10]} Kxd7 {[%emt 0:00:04]} 50. Kf5 {[%emt 0:00:27]} Kd6 {[%emt 0:00:14]} 51. f4 {[%emt 0:00:22]} Kd5 {[%emt 0:00:18]} 52. g5 {[%emt 0:00:24]} Kd4 {[%emt 0:01:27]} 53. g6 {[%emt 0:00:51]} fxg6+ {[%emt 0:00:06]} 54. Kxg6 {[%emt 0:00:12]} Ke4 {[%emt 0:00:04]} 55. f5 {[%emt 0:00:20]} Ke5 {[%emt 0:00:05]} 56. b4 {[%emt 0:00:25]} b5 {[%emt 0:00:21]} 57. Kg5 {[%emt 0:00:52]} Ke4 {[%emt 0:02:25]} 58. Kg4 {[%emt 0:00:12]} Ke5 {[%emt 0:00:27]} 59. Kg5 {[%emt 0:00:05]} 1/2-1/2

[Event "POL-chT 2nd League Juniors 2020"]
[Site "Sypniewo"]
[Date "2020.10.27"]
[Round "6.17"]
[White "Lach, Alicja"]
[Black "Jedrzejko, Martyna"]
[Result "0-1"]
[ECO "C02"]
[WhiteElo "1161"]
[BlackElo "1618"]
[Annotator "NA RC"]
[PlyCount "38"]
[EventDate "2020.10.23"]
[EventType "team-tourn"]
[EventCountry "POL"]
[SourceTitle "playchess.com"]
[Source "ChessBase"]
[SourceQuality "1"]
[TimeControl "5400+30"]

1. e4 {[%emt 0:00:00]} e6 {[%emt 0:00:00]} 2. d4 {[%emt 0:00:00]} d5 {[%emt 0:00:00]} 3. e5 {[%emt 0:00:00]} c5 {[%emt 0:00:01]} 4. c3 {[%emt 0:00:00]} Nc6 {[%emt 0:00:15]} 5. Nf3 {[%emt 0:00:00]} Qb6 {[%emt 0:00:14]} 6. a3 {[%emt 0:00:00]} c4 {[%emt 0:00:20]} 7. g3 {[%emt 0:00:10]} Bd7 {[%emt 0:00:41]} 8. Bh3 {[%emt 0:00:11]} Nge7 {[%emt 0:01:45]} 9. O-O {[%emt 0:00:18]} Nf5 {[%emt 0:03:48]} 10. Bxf5 {[%emt 0:03:21]} exf5 {[%emt 0:00:10]} 11. Ne1 {[%emt 0:02:30]} Na5 {[%emt 0:01:49]} 12. Nd2 {[%emt 0:00:13]} Be7 {[%emt 0:01:50]} 13. Ng2 {[%emt 0:01:37]} O-O-O {[%emt 0:11:44]} 14. Ne3 {[%emt 0:01:52]} Be6 {[%emt 0:04:30]} 15. Rb1 {[%emt 0:03:17]} f4 {[%emt 0:06:14]} 16. Ng2 {[%emt 0:03:51]} Bf5 {[%emt 0:01:55]} 17. Ra1 {[%emt 0:00:21]} g5 {[%emt 0:04:46]} 18. Qh5 {[%emt 0:10:13]} Qe6 {[%emt 0:02:32]} 19. h4 {[%emt 0:12:09]} Bg4 {[%emt 0:00:53]} 0-1